Cogmind - Beta 13 @@@ ROGUE MODE // 2024.04.01 @ 11:59:30 Player: Gilvian Result: Destroyed by as-46023 with Assembled Blade Performance ------------- Evolutions (0) 0 Regions Visited (2) 400 Robots Destroyed (20) 100 Value Destroyed (355) 355 Prototype IDs (2) 40 Alien Tech Used (0) 0 Bonus (0) 0 TOTAL SCORE: 895 Bonus ------- None Cogmind --------- Core Integrity 0/250 Matter 264/300 Energy 250/250 System Corruption 0% Temperature Cool (0) Movement Core (500) Ox9 Location -10/Mines Parts ------- > --- POWER (1) -------- Ion Engine > --- PROPULSION (2) --- (None) > --- UTILITY (2) ------ Large Storage Unit > --- WEAPON (2) ------- Assault Rifle Hammer > --- INVENTORY (15) --- High-capacity Matter Pod (0) Weapon Shielding Peak State ------------ > --- POWER ------------ Light Ion Engine > --- PROPULSION ------- Wheel Wheel > --- UTILITY ---------- Large Storage Unit Terrain Scanner > --- WEAPON ----------- Assault Rifle Hammer > --- INVENTORY -------- Light Treads Assault Rifle Grenade Launcher [Rating: 7] Favorites ----------- Power Light Ion Engine Engine Light Ion Engine Propulsion Light Treads Treads Light Treads Leg Aluminum Leg Wheel Wheel Utility Large Storage Unit Device ECM Suite Storage Large Storage Unit Weapon Hammer Ballistic Gun Assault Rifle Launcher Grenade Launcher Impact Weapon Hammer Build | -11 -10 -10 ------- Run | Yrd Mat Min Slots Evolved . | . . . Power . | . . . Propulsion . | . . . Utility . | . . . Weapon . | . . . Parts Attached 17 | 5 11 1 Power 3 | 1 2 . Engine 3 | 1 2 . Core . | . . . Reactor . | . . . Propulsion 5 | 2 3 . Treads 2 | . 2 . Leg 1 | . 1 . Wheel 2 | 2 . . Hover . | . . . Flight . | . . . Utility 3 | . 3 . Device 2 | . 2 . Storage 1 | . 1 . Processor . | . . . Hackware . | . . . Protection . | . . . Artifact . | . . . Weapon 6 | 2 3 1 Energy Gun . | . . . Energy Cannon . | . . . Ballistic Gun 4 | 2 1 1 Ballistic Cannon . | . . . Launcher 1 | . 1 . Special Weapon . | . . . Impact Weapon 1 | . 1 . Slashing Weapon . | . . . Piercing Weapon . | . . . Special Melee Weapon . | . . . Unidentified Prototypes . | . . . Parts Lost 6 | . 3 3 Power 1 | . 1 . Propulsion 4 | . 2 2 Utility 1 | . . 1 Weapon . | . . . Highest Loss Streak 3 | . 3 3 To Critical Strikes . | . . . Average Slot Usage (%) 86 | . 81 99 Engine 13 | . 13 14 Treads 8 | . 6 14 Leg 7 | . 4 13 Wheel 6 | . 8 . Device 12 | . 12 14 Storage 12 | . 12 14 Ballistic Gun 7 | . 4 14 Launcher 3 | . 4 . Impact Weapon 13 | . 13 14 Naked Turns . | . . . Heaviest Build 31 | 7 30 31 Greatest Support 20 | 20 20 10 Greatest Overweight (x) 10 | . 9 10 Average Overweight (x) 1 | . 1 3 Largest Inventory Capacity 15 | 5 15 15 Average Capacity 13 | 5 13 15 Most Carried 5 | 2 5 2 Average Carried 1 | . 2 . Final Capacity 15 | 5 15 15 Final Carried 2 | 1 1 2 Class Distribution -------------------- 100% | Mutant Dominant Class ---------------- Mutant | -10/Materials Mutant | -10/Mines Resources | -11 -10 -10 ----------- Run | Yrd Mat Min Matter Collected 415 | 227 142 46 Remotely . | . . . Salvage Created 320 | . 299 21 Parts 27 | . 27 . Haulers Intercepted . | . . . Recyclers Shooed . | . . . Parts Field Recycled . | . . . Retrieved Matter . | . . . Parts Self-Destructed . | . . . Prevented . | . . . Kills | -11 -10 -10 ------- Run | Yrd Mat Min Combat Hostiles Destroyed 16 | . 13 3 Melee 6 | . 4 2 AOE 9 | . 9 . Classes Destroyed 5 | . 5 . Worker 1 | . 1 . Builder 2 | . 2 . Watcher 1 | . 1 . Swarmer 9 | . 6 3 Grunt 7 | . 7 . Best Kill Streak 12 | . 12 3 Combat Bots Only 9 | . 9 3 Max Kills in Single Turn 4 | . 4 1 Gunslinging . | . . . Exploded 2 | . 2 . Melee 1 | . 1 1 Uniques/NPCs Destroyed . | . . . Combat | -11 -10 -10 -------- Run | Yrd Mat Min Hostile Shots Fired 132 | . 75 57 Missed 31 | . 20 11 Damage Taken 1061 | . 584 477 Core 270 | . 118 152 Absorbed by Shields . | . . . Core Remaining (%) 100 | 100 . . Volleys Fired 17 | . 15 2 Largest 1 | . 1 1 Hottest 30 | . 30 20 Shots Fired 17 | . 15 2 Gun 8 | . 6 2 Cannon . | . . . Launcher 9 | . 9 . Special . | . . . Kinetic 8 | . 6 2 Thermal . | . . . Explosive 9 | . 9 . Electromagnetic . | . . . Robot Hit Streak 4 | . 4 . Robot Miss Streak 3 | . 3 2 Penetration Max . | . . . Secondary Targets . | . . . Shots Hit Robots 33 | . 24 9 Core Hits 21 | . 21 . Critical Kills 2 | . 2 . Critical Parts Destroyed 1 | . 1 . Critical Strikes 3 | . 3 . Smash 3 | . 3 . Melee Attacks 34 | . 23 11 Impact 34 | . 23 11 Slashing . | . . . Piercing . | . . . Sneak Attacks 1 | . 1 . Combat Hostiles 1 | . 1 . Follow-up Attacks . | . . . Damage Inflicted 1393 | . 1135 258 Guns 49 | . 49 . Cannons . | . . . Explosions 621 | . 621 . Melee 722 | . 465 257 Ramming 1 | . . 1 Kinetic 49 | . 49 . Thermal . | . . . Explosive 621 | . 621 . Electromagnetic . | . . . Impact 722 | . 465 257 Slashing . | . . . Piercing . | . . . Highest Corruption . | . . . Average Corruption . | . . . Corruption Purged . | . . . Corruption Blocked . | . . . Overload Shots . | . . . Overflow Damage 117 | . 41 76 Projectiles . | . . . Explosions 15 | . 15 . Melee 102 | . 26 76 Knockbacks . | . . . Impact . | . . . Kinetic . | . . . Secondary . | . . . Self-Inflicted Damage 55 | . 55 . Shots 3 | . 3 . Rammed 1 | . . 1 Targets Rammed 1 | . . 1 Kicked . | . . . Crushed . | . . . Highest Temperature 10 | . 2 10 Average Temperature 4 | . 1 10 Received Heat Transfer 248 | . 168 80 Siege Activations . | . . . Robots Corrupted . | . . . Combat Hostiles . | . . . Parts Fried 1 | . . 1 Impact Corruptions 8 | . 2 6 Robots Melted . | . . . Combat Hostiles . | . . . Parts Melted . | . . . Heat Transferred . | . . . Parts Sabotaged . | . . . Parts Stolen . | . . . Parts Stripped . | . . . Power Chain Reactions . | . . . Alert | -11 -10 -10 ------- Run | Yrd Mat Min Peak Influence 285 | . 285 75 Initial 5 | . . 5 Average 108 | . 130 60 Maximum Alert Level 1 | . 1 . Low Security (%) 80 | 100 72 100 Level 1 19 | . 27 . Level 2 . | . . . Level 3 . | . . . Level 4 . | . . . Level 5 . | . . . High Security . | . . . Max Security . | . . . Squads Dispatched 4 | . 4 . Investigation 4 | . 4 . Extermination . | . . . Reinforcement . | . . . Assault . | . . . Garrison . | . . . Intercept . | . . . Searches Triggered . | . . . Construction Impeded . | . . . Haulers Reinforced . | . . . Active Scanning Responses . | . . . Cargo Convoy Interrupts . | . . . Stealth | -11 -10 -10 --------- Run | Yrd Mat Min Distress Signals 1 | . 1 . Communications Jammed . | . . . Distress Signals . | . . . Times Spotted 37 | . 29 8 Peak Tracking Total 9 | . 9 8 Tactical Retreats 2 | . 2 . Traps | -11 -10 -10 ------- Run | Yrd Mat Min Traps Triggered 3 | . 3 . Indirectly . | . . . Trap Hack Attempts . | . . . Triggered . | . . . Disarmed . | . . . Reprogrammed . | . . . Reused . | . . . Traps Extracted . | . . . Installed . | . . . Triggered . | . . . Machines | -11 -10 -10 ---------- Run | Yrd Mat Min Machines Disabled . | . . . Max in Single Turn . | . . . Machines Repaired . | . . . Machines Dismantled . | . . . Machines Sabotaged . | . . . Overloaded Fab Kills . | . . . Hacking | -11 -10 -10 --------- Run | Yrd Mat Min Machines Accessed 7 | . 7 . Terminals 5 | . 5 . Fabricators . | . . . Repair Stations . | . . . Recycling Units 2 | . 2 . Scanalyzers . | . . . Garrison Access . | . . . Total Hacks 20 | . 20 . Successful 11 | . 11 . Failed 9 | . 9 . Catastrophic . | . . . Database Lockouts . | . . . Manual . | . . . Terminals 14 | . 14 . Fabricators . | . . . Repair Stations . | . . . Recycling Units 6 | . 6 . Scanalyzers . | . . . Garrison Access . | . . . Terminal Hacks 7 | . 7 . Record 2 | . 2 . Prototype ID Bank 1 | . 1 . Scanalyzer Index 1 | . 1 . Alert Level 1 | . 1 . Unreport Threat 1 | . 1 . Zone Layout 1 | . 1 . Fabricator Hacks . | . . . Repair Station Hacks . | . . . Recycling Unit Hacks 4 | . 4 . Recycle Component 1 | . 1 . Process 1 | . 1 . Report Inventory 2 | . 2 . Scanalyzer . | . . . Garrison Access Hacks . | . . . Unauthorized Hacks . | . . . Terminals . | . . . Fabricators . | . . . Repair Stations . | . . . Recycling Units . | . . . Scanalyzers . | . . . Garrison Access . | . . . Data Cores Recovered . | . . . Used . | . . . Hacking Detections 5 | . 5 . Full Trace Events 3 | . 3 . Feedback Events . | . . . Feedback Blocked . | . . . Robot Schematics Acquired . | . . . Robots Built . | . . . Authchips . | . . . Time . | . . . Total Robot Build Rating . | . . . Part Schematics Acquired . | . . . Parts Built . | . . . Authchips . | . . . Time . | . . . Total Part Build Rating . | . . . Parts Repaired . | . . . Time . | . . . Parts Recycled 1 | . 1 . Recycled Matter 57 | . 57 . Retrieved Matter . | . . . Retrieved Components . | . . . Parts Scanalyzed . | . . . Part Schematics Acquired . | . . . Parts Damaged . | . . . Bothacking | -11 -10 -10 ------------ Run | Yrd Mat Min Used RIF Installer . | . . . Robots Hacked . | . . . Non-combat . | . . . Combat . | . . . Robot Hacks Applied . | . . . Relay Couplers Released . | . . . Fabnet Peak Effective % . | . . . Robots Rewired . | . . . Allies Hacked . | . . . Hacks Repelled . | . . . Allies | -11 -10 -10 -------- Run | Yrd Mat Min Total Allies . | . . . Largest Group . | . . . Highest-Rated Group . | . . . Highest-Rated Ally . | . . . Total Orders . | . . . Ally Attacks . | . . . Total Damage . | . . . Kills . | . . . Allies Corrupted . | . . . Allies Melted . | . . . Intel | -11 -10 -10 ------- Run | Yrd Mat Min Robot Analysis Total . | . . . Derelict Logs Recovered 2 | . . 2 Drone Launches . | . . . Drone Recoveries . | . . . Exploration | -11 -10 -10 ------------- Run | Yrd Mat Min Turns Passed 1856 | 60 1337 459 Spaces Moved 818 | 69 624 125 Core 77 | 18 58 1 Treads 65 | . 65 . Legs 297 | . 173 124 Wheels 379 | 51 328 . Hover . | . . . Flight . | . . . Fastest Speed 50 | 50 80 330 Average Speed 201 | 72 190 331 Slowest Speed 550 | 80 500 550 Overloaded Moves . | . . . Propulsion Burnouts . | . . . Robots Hopped . | . . . Cave-ins Triggered . | . . . Exploration Rate (%) 35 | 5 77 25 Regions Visited 2 Branch Regions 1 Pre-discovered Areas 1 | . . 1 Known Exits Taken . | . . . Unknown Exits Taken 2 | 1 1 . Scrap Searched 1 | . . 1 Spaces Dug . | . . . Terrain Destroyed 43 | . 43 . Melee . | . . . Projectile . | . . . AOE 43 | . 43 . Terrain Rammed . | . . . Walls Destroyed . | . . . Machines Disabled . | . . . Actions | -11 -10 -10 --------- Run | Yrd Mat Min Total 944 | 79 722 143 Wait 35 | . 34 1 Move 816 | 68 623 125 Hop . | . . . Pick Up 18 | 6 10 2 Fast Attach . | . . . Attach 14 | 5 8 1 Detach 2 | . 2 . Swap 3 | . 3 . Drop 4 | . 4 . Fire 17 | . 15 2 Melee 34 | . 23 11 Ram 1 | . . 1 Kick . | . . . Crush . | . . . Escape Stasis . | . . . Rewire . | . . . Trap . | . . . Miscellaneous . | . . . Route ------- -11/Scrapyard -10/Materials (discovered 4 exits: [*Mat x3] / [*Min]) -10/Mines History --------- Turn | Location | Event 2 | -11/Scrapyard | Met Revision 17 54 | -11/Scrapyard | Discovered new exit (range 8) 61 | -11/Scrapyard | Entered Materials 214 | -10/Materials | Discovered new exit (range 16) 307 | -10/Materials | Build established: Mutant 498 | -10/Materials | Lost 3 parts (1p2n) 519 | -10/Materials | Discovered new exit (range 6) 526 | -10/Materials | Destroyed 9 combat bots 760 | -10/Materials | Discovered new exit (range 9) 1055 | -10/Materials | Discovered new exit (range 12) 1398 | -10/Materials | Entered Mines 1410 | -10/Mines | Core integrity fell below 50% 1575 | -10/Mines | Learned location of Storage (-9) 1836 | -10/Mines | Assembled infested the area 1845 | -10/Mines | Core integrity fell below 20% 1857 | -10/Mines | Destroyed by as-46023 with Assembled Blade Last Messages --------------- Acquired derelict log, extracted data. Data stored: Storage entrances (x1). K-01 Serf collects debris. ALERT: Infestation in the mines, dispatching Demolisher response squad. K-01 Serf collects debris. K-01 Serf destroyed. K-01 Serf collects debris. Aluminum Leg destroyed. K-01 Serf collects debris. Slammed into as-46023. Ramming works as a last resort when unarmed or blocked, but can have serious negative consequences. Hammer broken. Destabilizing: Short circuit. K-01 Serf collects debris. ECM Suite destroyed. K-01 Serf collects debris. Lgt. Treads destroyed. Map ----- +----------------------------------------------------+ | | | | | | | | | | | | | | | | | | | | | ?????????????????????????????????????????????????? | | ????#????????############????????????????????????? | | ?## ##???????# #########????????????????? | | ?# ##??????# ##???????????????? | | ?# #??????# ##### #???????????????? | | ## #???????# #???## #???????????????? | | #????????# #????## #???????????????? | | ## #???????## ##???## ##??????????????? | | ?# #?????### #??## #??????????????? | | ?# #????## #??# #??????????????? | | ?# #???## #??# ##??????????????? | | ?# #???# ##??## ##???????????????? | | ?# #???# ##????# ##????????????????? | | ?# #???## ##?????## ##?????????????????? | | ?# #????## ##??????## a #??????????????????? | | ?# ##????## ######### @#### ?? ???????????? | | ?# ###???# u #### * ????????? | | ## ##?## ########## a =% ????????? | | # ### ##?????### ##### #??????????????? | | ######### #????####??????????????? | | #?# #??????????????????????? | | ### #### ##?????????????????????? | | ## #??## #?????????????????????? | | #### ## #???# k #?????????????????????? | | ##??## ## #???## ##?????????????????????? | | ##????## ## #????######??????????????????????? | | ???????## ### #????????????????????????????????? | | ????????# ###?# #????????????????????????????????? | | ????????# ##### #????????????????????????????????? | | ????????# #????????????????????????????????? | | ????????####### #????????????????????????????????? | | ??????????????# #????????????????????????????????? | | ??????????????# #????????????????????????????????? | | ??????????????# #????????????????????????????????? | | ??????????????# #????????????????????????????????? | | ?????????????? #????????????????????????????????? | | ??????????????###????????????????????????????????? | | ?????????????????????????????????????????????????? | | ?????????????????????????????????????????????????? | | ?????????????????????????????????????????????????? | +----------------------------------------------------+ Best States ------------- Heat Dissipation 25 Energy Generation 10 Energy Capacity 250 Matter Stores 300 Matter Capacity 300 Sight Range 16 Terrain Scan Range 14 Terrain Scan Density 10 ECM Strength 1 Evasion (%) 50 Recoil Reduction 1 Item Schematics ----------------- None Robot Schematics ------------------ None Fabricated ------------ Nothing Alien Tech Used ----------------- None Achievements -------------- None Challenges ------------ None Game ------ Seed SupersonicTargetField Manual? 0 Play Time 00:17:02 Cumulative 0.8 hours Start 2024.04.01 @ 11:42:03 End 2024.04.01 @ 11:59:30 Sessions 1 Manual Loads 0 Difficulty Rogue Special Mode None Game No. 3 Rogue 3 Adventurer 0 Explorer 0 Win Type - Total 0 Types 0/0/0/0/0/0/0/0/0 Lore% 1 Gallery% 2 Achievement% 3 Wizard Run 0 Options --------- Layout 1 ASCII 0 Keyboard 0 Movement Mouse Keybinds 0 Fullscreen 1 Font 24/Smallcaps Map View 50x35 Zoom Use 0% Tactical HUD 0 Map Filters NONE Filters NONE Steam 1 RUN: f23976a3-3f8d-4dbf-8403-a1bad59f363f